[Event "Titled Tuesday Blitz December 27 Early 2022"]
[White "McCoy, Owen"]
[Black "Fajdetic, Hrvoje"]
[WhiteFideId "30924502"]
[BlackFideId "14501945"]
[WhiteElo "2085"]
[BlackElo "2151"]
[Result "1-0"]
[Round "03"]
[TimeControl "180+2"]
[Date "2022.12.27"]
[WhiteClock "0:00:17"]
[BlackClock "0:00:07"]

1. Nf3 {[%clk 0:02:14]}  f5 {[%clk 0:02:58]} 2. g3 {[%clk 0:02:13]}  d6 {[%clk 0:02:56]} 3. Bg2 {[%clk 0:02:14]}  e5 {[%clk 0:02:53]} 4. d3 {[%clk 0:02:14]}  Nf6 {[%clk 0:02:52]} 5. O-O {[%clk 0:02:15]}  Be7 {[%clk 0:02:52]} 6. Nbd2 {[%clk 0:02:16]}  O-O {[%clk 0:02:51]} 7. e4 {[%clk 0:02:17]}  Nc6 {[%clk 0:02:50]} 8. c3 {[%clk 0:02:15]}  Qe8 {[%clk 0:02:47]} 9. exf5 {[%clk 0:02:11]}  Bxf5 {[%clk 0:02:45]} 10. Qb3+ {[%clk 0:02:08]}  Kh8 {[%clk 0:02:40]} 11. d4 {[%clk 0:02:06]}  Rb8 {[%clk 0:01:59]} 12. dxe5 {[%clk 0:01:58]}  dxe5 {[%clk 0:01:57]} 13. Ng5 {[%clk 0:01:49]}  Ng4 {[%clk 0:01:28]} 14. Ne6 {[%clk 0:01:31]}  Rf6 {[%clk 0:01:16]} 15. Nxc7 {[%clk 0:01:29]}  Qh5 {[%clk 0:01:13]} 16. h3 {[%clk 0:01:25]}  Nxf2 {[%clk 0:01:04]} 17. Rxf2 {[%clk 0:01:17]}  Bc5 {[%clk 0:00:58]} 18. Nd5 {[%clk 0:00:53]}  Bxf2+ {[%clk 0:00:54]} 19. Kxf2 {[%clk 0:00:52]}  Bc2+ {[%clk 0:00:39]} 20. Nxf6 {[%clk 0:00:50]}  Qf5+ {[%clk 0:00:39]} 21. Kg1 {[%clk 0:00:45]}  Bxb3 {[%clk 0:00:38]} 22. Nfe4 {[%clk 0:00:42]}  Bd5 {[%clk 0:00:31]} 23. Nd6 {[%clk 0:00:36]}  Qe6 {[%clk 0:00:27]} 24. N2e4 {[%clk 0:00:37]}  Rf8 {[%clk 0:00:15]} 25. Be3 {[%clk 0:00:33]}  b6 {[%clk 0:00:13]} 26. a3 {[%clk 0:00:27]}  Ne7 {[%clk 0:00:13]} 27. g4 {[%clk 0:00:21]}  Ng6 {[%clk 0:00:13]} 28. Nf5 {[%clk 0:00:19]}  Nf4 {[%clk 0:00:12]} 29. Bxf4 {[%clk 0:00:18]}  exf4 {[%clk 0:00:12]} 30. Re1 {[%clk 0:00:19]}  Bxe4 {[%clk 0:00:11]} 31. Rxe4 {[%clk 0:00:20]}  Qc8 {[%clk 0:00:10]} 32. Nd4 {[%clk 0:00:17]}  g6 {[%clk 0:00:09]} 33. Bf3 {[%clk 0:00:17]}  Qc5 {[%clk 0:00:09]} 34. Kg2 {[%clk 0:00:17]}  Kg7 {[%clk 0:00:07]} 35. Ne6+ {[%clk 0:00:17]} 1-0


[Site "https://www.chess.com"]

[Event "Titled Tuesday Blitz December 27 Early 2022"]
[White "Melikhov, Evgeny V."]
[Black "Demin, Vladimir"]
[WhiteFideId "4122046"]
[BlackFideId "4167457"]
[WhiteElo "2269"]
[BlackElo "2430"]
[Result "0-1"]
[Round "03"]
[TimeControl "180+2"]
[Date "2022.12.27"]
[WhiteClock "0:00:14"]
[BlackClock "0:00:14"]

1. d4 {[%clk 0:03:00]}  Nf6 {[%clk 0:02:59]} 2. c4 {[%clk 0:03:00]}  e6 {[%clk 0:02:57]} 3. Nc3 {[%clk 0:03:01]}  d5 {[%clk 0:02:56]} 4. cxd5 {[%clk 0:03:00]}  exd5 {[%clk 0:02:57]} 5. Bg5 {[%clk 0:03:00]}  c6 {[%clk 0:02:58]} 6. Qc2 {[%clk 0:02:59]}  h6 {[%clk 0:02:53]} 7. Bh4 {[%clk 0:02:59]}  Be7 {[%clk 0:02:49]} 8. e3 {[%clk 0:02:59]}  O-O {[%clk 0:02:49]} 9. Bd3 {[%clk 0:02:58]}  b5 {[%clk 0:02:47]} 10. Nf3 {[%clk 0:02:52]}  Nbd7 {[%clk 0:02:45]} 11. O-O {[%clk 0:02:51]}  a5 {[%clk 0:02:45]} 12. h3 {[%clk 0:02:45]}  Bb7 {[%clk 0:02:42]} 13. Ne5 {[%clk 0:02:42]}  Nxe5 {[%clk 0:02:41]} 14. dxe5 {[%clk 0:02:41]}  Nd7 {[%clk 0:02:40]} 15. Bg3 {[%clk 0:02:36]}  Bc5 {[%clk 0:02:35]} 16. Qe2 {[%clk 0:02:30]}  Qe7 {[%clk 0:02:31]} 17. Qh5 {[%clk 0:02:27]}  a4 {[%clk 0:02:23]} 18. Rae1 {[%clk 0:02:17]}  b4 {[%clk 0:02:22]} 19. Ne2 {[%clk 0:02:14]}  Rae8 {[%clk 0:02:20]} 20. Qf5 {[%clk 0:01:25]}  g6 {[%clk 0:02:18]} 21. Qf4 {[%clk 0:01:21]}  Nxe5 {[%clk 0:02:12]} 22. Bb1 {[%clk 0:01:13]}  Qg5 {[%clk 0:02:11]} 23. Nd4 {[%clk 0:00:38]}  Qxf4 {[%clk 0:02:03]} 24. Bxf4 {[%clk 0:00:37]}  Kg7 {[%clk 0:01:59]} 25. b3 {[%clk 0:00:28]}  Ba6 {[%clk 0:01:39]} 26. Ne2 {[%clk 0:00:28]}  axb3 {[%clk 0:01:23]} 27. axb3 {[%clk 0:00:27]}  Nd3 {[%clk 0:01:21]} 28. Bxd3 {[%clk 0:00:22]}  Bxd3 {[%clk 0:01:22]} 29. Rc1 {[%clk 0:00:21]}  Be7 {[%clk 0:01:15]} 30. Rfe1 {[%clk 0:00:21]}  Bxe2 {[%clk 0:01:11]} 31. Rxe2 {[%clk 0:00:21]}  Rc8 {[%clk 0:01:09]} 32. Rd2 {[%clk 0:00:20]}  Bf6 {[%clk 0:01:08]} 33. Bd6 {[%clk 0:00:19]}  Rfd8 {[%clk 0:01:03]} 34. Bxb4 {[%clk 0:00:19]}  Rd7 {[%clk 0:00:59]} 35. Bc3 {[%clk 0:00:19]}  Bxc3 {[%clk 0:00:50]} 36. Rxc3 {[%clk 0:00:19]}  Kf6 {[%clk 0:00:51]} 37. b4 {[%clk 0:00:19]}  Ke6 {[%clk 0:00:50]} 38. Rd4 {[%clk 0:00:18]}  Ke5 {[%clk 0:00:47]} 39. f4+ {[%clk 0:00:18]}  Ke6 {[%clk 0:00:47]} 40. Kf2 {[%clk 0:00:18]}  f5 {[%clk 0:00:48]} 41. g4 {[%clk 0:00:18]}  Rb7 {[%clk 0:00:48]} 42. Kf3 {[%clk 0:00:17]}  Kd6 {[%clk 0:00:48]} 43. Rc5 {[%clk 0:00:16]}  Rcb8 {[%clk 0:00:47]} 44. Ra5 {[%clk 0:00:14]}  Rxb4 {[%clk 0:00:47]} 45. Rxb4 {[%clk 0:00:14]}  Rxb4 {[%clk 0:00:48]} 46. Ra7 {[%clk 0:00:15]}  Ke6 {[%clk 0:00:38]} 47. Rh7 {[%clk 0:00:14]}  Kf6 {[%clk 0:00:33]} 48. Rxh6 {[%clk 0:00:14]}  Kg7 {[%clk 0:00:33]} 49. g5 {[%clk 0:00:14]}  c5 {[%clk 0:00:29]} 50. h4 {[%clk 0:00:14]}  Rb3 {[%clk 0:00:23]} 51. Kf2 {[%clk 0:00:14]}  Rb2+ {[%clk 0:00:22]} 52. Kg3 {[%clk 0:00:14]}  Re2 {[%clk 0:00:21]} 53. h5 {[%clk 0:00:14]}  gxh5 {[%clk 0:00:20]} 54. Rf6 {[%clk 0:00:13]}  Rxe3+ {[%clk 0:00:20]} 55. Kf2 {[%clk 0:00:13]}  Re4 {[%clk 0:00:18]} 56. Kf3 {[%clk 0:00:13]}  c4 {[%clk 0:00:16]} 57. Rxf5 {[%clk 0:00:13]}  Rd4 {[%clk 0:00:16]} 58. Re5 {[%clk 0:00:14]}  c3 {[%clk 0:00:16]} 59. f5 {[%clk 0:00:14]}  c2 {[%clk 0:00:15]} 60. Re7+ {[%clk 0:00:14]}  Kf8 {[%clk 0:00:15]} 61. f6 {[%clk 0:00:14]}  c1=Q {[%clk 0:00:15]} 62. g6 {[%clk 0:00:14]}  Qf1+ {[%clk 0:00:14]} 0-1


[Site "https://www.chess.com"]

[Event "Titled Tuesday Blitz December 27 Early 2022"]
[White "Mikhailovsky, Vladimir"]
[Black "Moskvin, Anatoly"]
[WhiteFideId "34105414"]
[BlackFideId "24199990"]
[WhiteElo "2215"]
[BlackElo "2189"]
[Result "0-1"]
[Round "03"]
[TimeControl "180+2"]
[Date "2022.12.27"]
[WhiteClock "0:00:02"]
[BlackClock "0:00:10"]

1. e4 {[%clk 0:02:52]}  e5 {[%clk 0:02:58]} 2. Nf3 {[%clk 0:02:52]}  Nc6 {[%clk 0:02:59]} 3. Nc3 {[%clk 0:02:52]}  Nf6 {[%clk 0:02:59]} 4. d4 {[%clk 0:02:52]}  exd4 {[%clk 0:03:00]} 5. Nxd4 {[%clk 0:02:53]}  Bb4 {[%clk 0:03:00]} 6. Nxc6 {[%clk 0:02:54]}  bxc6 {[%clk 0:03:01]} 7. Bd3 {[%clk 0:02:54]}  d5 {[%clk 0:03:02]} 8. exd5 {[%clk 0:02:55]}  cxd5 {[%clk 0:03:03]} 9. O-O {[%clk 0:02:56]}  O-O {[%clk 0:03:03]} 10. h3 {[%clk 0:02:57]}  c6 {[%clk 0:03:04]} 11. Qf3 {[%clk 0:02:57]}  Bd6 {[%clk 0:03:03]} 12. Bf4 {[%clk 0:02:57]}  Rb8 {[%clk 0:03:01]} 13. b3 {[%clk 0:02:57]}  Be6 {[%clk 0:03:01]} 14. Rfe1 {[%clk 0:02:57]}  c5 {[%clk 0:02:54]} 15. Rad1 {[%clk 0:02:56]}  Bxf4 {[%clk 0:02:46]} 16. Qxf4 {[%clk 0:02:55]}  Qa5 {[%clk 0:02:47]} 17. Na4 {[%clk 0:02:48]}  Bd7 {[%clk 0:02:27]} 18. Nb2 {[%clk 0:02:00]}  Qxa2 {[%clk 0:02:24]} 19. Na4 {[%clk 0:02:01]}  Qa3 {[%clk 0:02:20]} 20. Ra1 {[%clk 0:01:37]}  Qb4 {[%clk 0:02:16]} 21. Qxb4 {[%clk 0:01:37]}  cxb4 {[%clk 0:02:12]} 22. Nc5 {[%clk 0:01:38]}  Bb5 {[%clk 0:01:50]} 23. Rxa7 {[%clk 0:01:37]}  Bxd3 {[%clk 0:01:50]} 24. Nxd3 {[%clk 0:01:38]}  Ra8 {[%clk 0:01:38]} 25. Rxa8 {[%clk 0:01:34]}  Rxa8 {[%clk 0:01:39]} 26. Nxb4 {[%clk 0:01:34]}  Rb8 {[%clk 0:01:39]} 27. Nc6 {[%clk 0:01:32]}  Rb6 {[%clk 0:01:39]} 28. Ra1 {[%clk 0:01:18]}  g6 {[%clk 0:01:38]} 29. Ra8+ {[%clk 0:01:17]}  Kg7 {[%clk 0:01:38]} 30. Nd4 {[%clk 0:01:17]}  Rb4 {[%clk 0:01:37]} 31. Ra4 {[%clk 0:01:07]}  Rb6 {[%clk 0:01:36]} 32. Kf1 {[%clk 0:01:06]}  Kf8 {[%clk 0:01:30]} 33. f3 {[%clk 0:01:04]}  Rb7 {[%clk 0:01:30]} 34. Ra6 {[%clk 0:01:01]}  Ne8 {[%clk 0:01:28]} 35. Ke2 {[%clk 0:01:01]}  Ke7 {[%clk 0:01:28]} 36. Nc6+ {[%clk 0:00:57]}  Kd7 {[%clk 0:01:22]} 37. Ne5+ {[%clk 0:00:57]}  Ke7 {[%clk 0:01:22]} 38. Kd3 {[%clk 0:00:55]}  Nc7 {[%clk 0:01:02]} 39. Rc6 {[%clk 0:00:38]}  f6 {[%clk 0:00:40]} 40. Ng4 {[%clk 0:00:36]}  Ne6 {[%clk 0:00:39]} 41. Ne3 {[%clk 0:00:35]}  Rb5 {[%clk 0:00:18]} 42. h4 {[%clk 0:00:16]}  h5 {[%clk 0:00:18]} 43. g3 {[%clk 0:00:16]}  Kd7 {[%clk 0:00:17]} 44. Rc3 {[%clk 0:00:03]}  d4 {[%clk 0:00:16]} 45. Kc4 {[%clk 0:00:03]}  Rc5+ {[%clk 0:00:12]} 46. Kb4 {[%clk 0:00:03]}  Rxc3 {[%clk 0:00:12]} 47. Nd5 {[%clk 0:00:04]}  Rxf3 {[%clk 0:00:13]} 48. Kc4 {[%clk 0:00:03]}  Kd6 {[%clk 0:00:12]} 49. Nb6 {[%clk 0:00:02]}  Rxg3 {[%clk 0:00:12]} 50. b4 {[%clk 0:00:02]}  Kc6 {[%clk 0:00:10]} 0-1


[Site "https://www.chess.com"]

[Event "Titled Tuesday Blitz December 27 Early 2022"]
[White "Mohammed, Zozek Salah Mohammed"]
[Black "Hon, Eric"]
[WhiteFideId "4803361"]
[BlackFideId "2097117"]
[WhiteElo "2210"]
[BlackElo "1897"]
[Result "1-0"]
[Round "03"]
[TimeControl "180+2"]
[Date "2022.12.27"]
[WhiteClock "0:01:19"]
[BlackClock "0:01:26"]

1. d4 {[%clk 0:02:56]}  Nf6 {[%clk 0:02:59]} 2. Nf3 {[%clk 0:02:56]}  g6 {[%clk 0:02:35]} 3. c4 {[%clk 0:02:55]}  Bg7 {[%clk 0:02:35]} 4. g3 {[%clk 0:02:55]}  O-O {[%clk 0:02:35]} 5. Bg2 {[%clk 0:02:56]}  d5 {[%clk 0:02:36]} 6. O-O {[%clk 0:02:56]}  c6 {[%clk 0:02:35]} 7. Nbd2 {[%clk 0:02:56]}  a5 {[%clk 0:02:35]} 8. Ne5 {[%clk 0:02:53]}  Na6 {[%clk 0:02:35]} 9. e4 {[%clk 0:02:51]}  dxe4 {[%clk 0:02:35]} 10. Nxe4 {[%clk 0:02:51]}  Nxe4 {[%clk 0:02:34]} 11. Bxe4 {[%clk 0:02:52]}  Bh3 {[%clk 0:02:32]} 12. Re1 {[%clk 0:02:49]}  Bxe5 {[%clk 0:02:31]} 13. dxe5 {[%clk 0:02:49]}  Qxd1 {[%clk 0:02:32]} 14. Rxd1 {[%clk 0:02:49]}  Rfd8 {[%clk 0:02:32]} 15. Be3 {[%clk 0:02:44]}  Rxd1+ {[%clk 0:02:12]} 16. Rxd1 {[%clk 0:02:42]}  Nb4 {[%clk 0:02:11]} 17. a3 {[%clk 0:02:37]}  Na6 {[%clk 0:02:05]} 18. Bb6 {[%clk 0:02:25]}  a4 {[%clk 0:02:03]} 19. f3 {[%clk 0:02:12]}  Be6 {[%clk 0:02:01]} 20. c5 {[%clk 0:02:11]}  Kf8 {[%clk 0:01:53]} 21. Bc2 {[%clk 0:02:10]}  Ke8 {[%clk 0:01:51]} 22. Bxa4 {[%clk 0:02:03]}  Nxc5 {[%clk 0:01:51]} 23. Bxc6+ {[%clk 0:01:47]}  bxc6 {[%clk 0:01:49]} 24. Bxc5 {[%clk 0:01:47]}  Bd5 {[%clk 0:01:47]} 25. Kf2 {[%clk 0:01:45]}  e6 {[%clk 0:01:48]} 26. Rd4 {[%clk 0:01:38]}  Kd7 {[%clk 0:01:47]} 27. a4 {[%clk 0:01:35]}  Rb8 {[%clk 0:01:46]} 28. b4 {[%clk 0:01:34]}  Ra8 {[%clk 0:01:44]} 29. a5 {[%clk 0:01:33]}  h5 {[%clk 0:01:41]} 30. Ke3 {[%clk 0:01:28]}  Ke8 {[%clk 0:01:38]} 31. Kf4 {[%clk 0:01:27]}  Rb8 {[%clk 0:01:32]} 32. a6 {[%clk 0:01:26]}  Ra8 {[%clk 0:01:31]} 33. a7 {[%clk 0:01:26]}  Kd7 {[%clk 0:01:28]} 34. Kg5 {[%clk 0:01:23]}  Kc7 {[%clk 0:01:28]} 35. Kf6 {[%clk 0:01:19]}  Bxf3 {[%clk 0:01:26]} 36. Kxf7 {[%clk 0:01:19]}  Bd5 {[%clk 0:01:26]} 37. Kxg6 {[%clk 0:01:19]} 1-0


[Site "https://www.chess.com"]

[Event "Titled Tuesday Blitz December 27 Early 2022"]
[White "Moreno Perez, Tobias Sebastian"]
[Black "Gerbelli Neto, Eduardo"]
[WhiteFideId "186716"]
[BlackFideId "2103281"]
[WhiteElo "2256"]
[BlackElo "2114"]
[Result "1-0"]
[Round "03"]
[TimeControl "180+2"]
[Date "2022.12.27"]
[WhiteClock "0:00:31"]
[BlackClock "0:00:12"]

1. Nf3 {[%clk 0:02:56]}  Nf6 {[%clk 0:02:55]} 2. b3 {[%clk 0:02:56]}  d5 {[%clk 0:02:50]} 3. Bb2 {[%clk 0:02:57]}  e6 {[%clk 0:02:51]} 4. e3 {[%clk 0:02:57]}  Be7 {[%clk 0:02:52]} 5. g3 {[%clk 0:02:57]}  O-O {[%clk 0:02:52]} 6. Bg2 {[%clk 0:02:58]}  c5 {[%clk 0:02:53]} 7. O-O {[%clk 0:02:58]}  Nc6 {[%clk 0:02:53]} 8. d3 {[%clk 0:02:56]}  b6 {[%clk 0:02:53]} 9. Nbd2 {[%clk 0:02:52]}  Qc7 {[%clk 0:02:52]} 10. Qe2 {[%clk 0:02:52]}  Bb7 {[%clk 0:02:51]} 11. e4 {[%clk 0:02:51]}  dxe4 {[%clk 0:02:49]} 12. dxe4 {[%clk 0:02:50]}  e5 {[%clk 0:02:39]} 13. c3 {[%clk 0:02:48]}  a5 {[%clk 0:02:35]} 14. a4 {[%clk 0:02:43]}  Ba6 {[%clk 0:02:35]} 15. Nc4 {[%clk 0:02:44]}  Rfe8 {[%clk 0:02:31]} 16. Rfd1 {[%clk 0:02:43]}  Rad8 {[%clk 0:02:07]} 17. Nfd2 {[%clk 0:02:41]}  Bf8 {[%clk 0:02:00]} 18. Qe1 {[%clk 0:02:27]}  g6 {[%clk 0:01:41]} 19. Ne3 {[%clk 0:02:25]}  Bg7 {[%clk 0:01:23]} 20. Ndc4 {[%clk 0:02:18]}  b5 {[%clk 0:00:48]} 21. axb5 {[%clk 0:02:16]}  Bxb5 {[%clk 0:00:48]} 22. Rxd8 {[%clk 0:02:17]}  Rxd8 {[%clk 0:00:46]} 23. Rd1 {[%clk 0:02:17]}  Rb8 {[%clk 0:00:42]} 24. Ba3 {[%clk 0:02:15]}  Bxc4 {[%clk 0:00:33]} 25. bxc4 {[%clk 0:02:10]}  Bf8 {[%clk 0:00:29]} 26. Nd5 {[%clk 0:02:09]}  Nxd5 {[%clk 0:00:16]} 27. cxd5 {[%clk 0:02:10]}  Na7 {[%clk 0:00:16]} 28. c4 {[%clk 0:02:04]}  Rb3 {[%clk 0:00:15]} 29. Ra1 {[%clk 0:02:02]}  Bd6 {[%clk 0:00:15]} 30. Bc1 {[%clk 0:01:58]}  Qb6 {[%clk 0:00:15]} 31. Qxa5 {[%clk 0:01:27]}  Qxa5 {[%clk 0:00:14]} 32. Rxa5 {[%clk 0:01:28]}  Rb1 {[%clk 0:00:14]} 33. Rxa7 {[%clk 0:01:28]}  Rxc1+ {[%clk 0:00:15]} 34. Bf1 {[%clk 0:01:28]}  Kg7 {[%clk 0:00:14]} 35. Kg2 {[%clk 0:01:28]}  Kf6 {[%clk 0:00:12]} 36. Rd7 {[%clk 0:01:27]}  Bb8 {[%clk 0:00:12]} 37. Rd8 {[%clk 0:01:02]}  Rb1 {[%clk 0:00:12]} 38. Rc8 {[%clk 0:00:53]}  Bd6 {[%clk 0:00:12]} 39. Rc6 {[%clk 0:00:51]}  Ke7 {[%clk 0:00:13]} 40. h4 {[%clk 0:00:47]}  h5 {[%clk 0:00:12]} 41. Be2 {[%clk 0:00:44]}  Rb2 {[%clk 0:00:12]} 42. Bd1 {[%clk 0:00:38]}  Rb1 {[%clk 0:00:12]} 43. Ba4 {[%clk 0:00:37]}  Rc1 {[%clk 0:00:13]} 44. Bb5 {[%clk 0:00:36]}  Re1 {[%clk 0:00:12]} 45. Kf3 {[%clk 0:00:33]}  Rb1 {[%clk 0:00:11]} 46. Rc8 {[%clk 0:00:33]}  Rb3+ {[%clk 0:00:11]} 47. Kg2 {[%clk 0:00:33]}  Rb2 {[%clk 0:00:12]} 48. Re8+ {[%clk 0:00:32]}  Kf6 {[%clk 0:00:12]} 49. Rd8 {[%clk 0:00:31]}  Ke7 {[%clk 0:00:12]} 50. Rd7+ {[%clk 0:00:31]} 1-0


[Site "https://www.chess.com"]

[Event "Titled Tuesday Blitz December 27 Early 2022"]
[White "Mortazavi, Ali"]
[Black "Jones, Gawain C B"]
[WhiteFideId "401323"]
[BlackFideId "409561"]
[WhiteElo "2333"]
[BlackElo "2618"]
[Result "0-1"]
[Round "03"]
[TimeControl "180+2"]
[Date "2022.12.27"]
[WhiteClock "0:00:07"]
[BlackClock "0:01:05"]

1. b3 {[%clk 0:02:58]}  g6 {[%clk 0:02:57]} 2. Bb2 {[%clk 0:02:58]}  Nf6 {[%clk 0:02:58]} 3. e4 {[%clk 0:02:56]}  Bg7 {[%clk 0:02:58]} 4. e5 {[%clk 0:02:52]}  Nd5 {[%clk 0:02:58]} 5. c4 {[%clk 0:02:48]}  Nb6 {[%clk 0:02:58]} 6. d4 {[%clk 0:02:43]}  d6 {[%clk 0:02:57]} 7. exd6 {[%clk 0:02:43]}  exd6 {[%clk 0:02:54]} 8. Nf3 {[%clk 0:02:41]}  O-O {[%clk 0:02:52]} 9. Be2 {[%clk 0:02:42]}  Nc6 {[%clk 0:02:50]} 10. O-O {[%clk 0:02:37]}  Bg4 {[%clk 0:02:40]} 11. Nbd2 {[%clk 0:02:37]}  Re8 {[%clk 0:02:36]} 12. h3 {[%clk 0:02:35]}  Bf5 {[%clk 0:02:36]} 13. a3 {[%clk 0:02:29]}  Qd7 {[%clk 0:02:34]} 14. Re1 {[%clk 0:02:26]}  a5 {[%clk 0:02:30]} 15. Nf1 {[%clk 0:02:15]}  a4 {[%clk 0:02:26]} 16. Ne3 {[%clk 0:02:08]}  axb3 {[%clk 0:02:25]} 17. Qxb3 {[%clk 0:01:46]}  Na5 {[%clk 0:02:19]} 18. Qa2 {[%clk 0:01:24]}  Na4 {[%clk 0:02:15]} 19. Rad1 {[%clk 0:01:11]}  Be4 {[%clk 0:01:44]} 20. Ba1 {[%clk 0:01:07]}  Re7 {[%clk 0:01:38]} 21. d5 {[%clk 0:01:06]}  Nc3 {[%clk 0:01:36]} 22. Qb2 {[%clk 0:00:54]}  f5 {[%clk 0:01:30]} 23. Qxc3 {[%clk 0:00:53]}  Bxc3 {[%clk 0:01:29]} 24. Bxc3 {[%clk 0:00:54]}  Bxf3 {[%clk 0:01:27]} 25. Bxf3 {[%clk 0:00:52]}  b6 {[%clk 0:01:24]} 26. Rd4 {[%clk 0:00:31]}  Nb3 {[%clk 0:01:20]} 27. Rh4 {[%clk 0:00:30]}  Rxa3 {[%clk 0:01:17]} 28. Kh2 {[%clk 0:00:27]}  Nc5 {[%clk 0:01:14]} 29. Bf6 {[%clk 0:00:18]}  Nd3 {[%clk 0:01:08]} 30. Nxf5 {[%clk 0:00:12]}  Rxe1 {[%clk 0:01:04]} 31. Nh6+ {[%clk 0:00:07]}  Kf8 {[%clk 0:01:05]} 32. Bg4 {[%clk 0:00:07]}  Nxf2 {[%clk 0:01:05]} 0-1


[Site "https://www.chess.com"]

[Event "Titled Tuesday Blitz December 27 Early 2022"]
[White "Najdin, Danil"]
[Black "Kleiman, Jake"]
[WhiteFideId "4172426"]
[BlackFideId "2020041"]
[WhiteElo "2235"]
[BlackElo "2399"]
[Result "0-1"]
[Round "03"]
[TimeControl "180+2"]
[Date "2022.12.27"]
[WhiteClock "0:00:04"]
[BlackClock "0:00:15"]

1. e4 {[%clk 0:03:00]}  e5 {[%clk 0:03:00]} 2. Nf3 {[%clk 0:03:00]}  Nc6 {[%clk 0:03:00]} 3. Bc4 {[%clk 0:02:58]}  Bc5 {[%clk 0:03:00]} 4. c3 {[%clk 0:02:57]}  Nf6 {[%clk 0:03:00]} 5. d3 {[%clk 0:02:57]}  O-O {[%clk 0:03:01]} 6. O-O {[%clk 0:02:52]}  d5 {[%clk 0:03:01]} 7. exd5 {[%clk 0:02:51]}  Nxd5 {[%clk 0:03:01]} 8. Re1 {[%clk 0:02:51]}  Bg4 {[%clk 0:03:01]} 9. Nbd2 {[%clk 0:02:45]}  Nb6 {[%clk 0:03:00]} 10. Ne4 {[%clk 0:02:35]}  Bd6 {[%clk 0:03:00]} 11. Bb3 {[%clk 0:02:34]}  Kh8 {[%clk 0:02:54]} 12. h3 {[%clk 0:02:31]}  Bh5 {[%clk 0:02:50]} 13. Ng3 {[%clk 0:02:18]}  Bg6 {[%clk 0:02:45]} 14. a4 {[%clk 0:02:12]}  a5 {[%clk 0:02:44]} 15. Bg5 {[%clk 0:02:02]}  f6 {[%clk 0:02:34]} 16. Be3 {[%clk 0:02:02]}  Be7 {[%clk 0:02:24]} 17. Nh4 {[%clk 0:01:57]}  Bxd3 {[%clk 0:02:07]} 18. Qh5 {[%clk 0:01:53]}  Qe8 {[%clk 0:02:06]} 19. Qf3 {[%clk 0:01:40]}  f5 {[%clk 0:01:35]} 20. Bxb6 {[%clk 0:00:59]}  e4 {[%clk 0:01:34]} 21. Qe3 {[%clk 0:00:59]}  Bxh4 {[%clk 0:01:25]} 22. Bxc7 {[%clk 0:00:55]}  Qe7 {[%clk 0:00:58]} 23. Qb6 {[%clk 0:00:42]}  Ra6 {[%clk 0:00:35]} 24. Qxb7 {[%clk 0:00:38]}  Qd7 {[%clk 0:00:31]} 25. Nxf5 {[%clk 0:00:14]}  Qxf5 {[%clk 0:00:24]} 26. Bg3 {[%clk 0:00:12]}  Bxg3 {[%clk 0:00:21]} 27. fxg3 {[%clk 0:00:13]}  Qc5+ {[%clk 0:00:16]} 28. Kh2 {[%clk 0:00:12]}  Rb6 {[%clk 0:00:17]} 29. Rf1 {[%clk 0:00:05]}  Bxf1 {[%clk 0:00:15]} 30. Rxf1 {[%clk 0:00:04]}  Rxb7 {[%clk 0:00:15]} 0-1


[Site "https://www.chess.com"]

[Event "Titled Tuesday Blitz December 27 Early 2022"]
[White "Osinovsky, Stepan"]
[Black "Orzech, Dominik"]
[WhiteFideId "4157354"]
[BlackFideId "1115065"]
[WhiteElo "2241"]
[BlackElo "2308"]
[Result "1-0"]
[Round "03"]
[TimeControl "180+2"]
[Date "2022.12.27"]
[WhiteClock "0:00:52"]
[BlackClock "0:02:21"]

1. e4 {[%clk 0:02:47]}  c5 {[%clk 0:02:58]} 2. d3 {[%clk 0:02:46]}  Nc6 {[%clk 0:02:57]} 3. Nd2 {[%clk 0:02:47]}  g6 {[%clk 0:02:57]} 4. g3 {[%clk 0:02:47]}  Bg7 {[%clk 0:02:58]} 5. Bg2 {[%clk 0:02:48]}  Nf6 {[%clk 0:02:57]} 6. Ngf3 {[%clk 0:02:48]}  O-O {[%clk 0:02:57]} 7. O-O {[%clk 0:02:43]}  d5 {[%clk 0:02:57]} 8. exd5 {[%clk 0:02:37]}  Nxd5 {[%clk 0:02:57]} 9. Re1 {[%clk 0:02:38]}  b6 {[%clk 0:02:56]} 10. a4 {[%clk 0:02:34]}  Bb7 {[%clk 0:02:55]} 11. Nc4 {[%clk 0:02:31]}  Ndb4 {[%clk 0:02:54]} 12. a5 {[%clk 0:02:01]}  b5 {[%clk 0:02:52]} 13. a6 {[%clk 0:02:01]}  Bxa6 {[%clk 0:02:51]} 14. Nfe5 {[%clk 0:01:49]}  Nxe5 {[%clk 0:02:48]} 15. Nxe5 {[%clk 0:01:44]}  Qd6 {[%clk 0:02:44]} 16. Bf4 {[%clk 0:01:36]}  Qb6 {[%clk 0:02:36]} 17. Nd7 {[%clk 0:01:26]}  Qd8 {[%clk 0:02:32]} 18. Nxf8 {[%clk 0:01:21]}  Kxf8 {[%clk 0:02:26]} 19. c3 {[%clk 0:01:06]}  Nxd3 {[%clk 0:02:24]} 20. Rxa6 {[%clk 0:01:06]}  Nxe1 {[%clk 0:02:22]} 21. Qxe1 {[%clk 0:01:05]}  Rc8 {[%clk 0:02:21]} 22. Bb7 {[%clk 0:00:52]} 1-0


[Site "https://www.chess.com"]